fUSD/lending_fUSD_20240528
["ID","MTS","AMOUNT","RATE_DAILY","PERIOD"]
[328101908,1716862239636,-342.95170706,0.00025186,2]
[328101909,1716862239646,-154.30080749,0.00025219,2]
[328101910,1716862239656,-170.49,0.0002523,2]
[328101911,1716862239667,-316.93561699,0.00025234,2]
[328101912,1716862239677,-238.28637993,0.00025257,2]
[328101913,1716862239687,-242.17713606,0.00025257,2]
[328101914,1716862239698,-581.66038416,0.00025299,2]
[328101915,1716862239708,-3646.0,0.000253,3]
[328101916,1716862239718,-856.0,0.000253,3]
[328101917,1716862239728,-342.95170706,0.00025338,2]
[328101918,1716862239738,-170.49,0.00025356,2]
[328101919,1716862239747,-154.30080749,0.00025415,2]
[328101920,1716862239757,-674.66,0.00025771,2]
[328101921,1716862239766,-342.95170706,0.00025778,2]
[328101922,1716862239776,-429.2,0.00025883,2]
[328101923,1716862239785,-342.95170706,0.00025884,2]
[328101924,1716862239795,-1896.23,0.00025923,2]
[328101925,1716862239804,-168.36,0.0002595,2]
[328101926,1716862239813,-154.72687218,0.00026053,2]
[328101927,1716862239822,-152.96848495,0.00026105,2]
[328101928,1716862239831,-154.01663236,0.00026135,2]
[328101929,1716862239841,-154.30080749,0.00026148,2]
[328101930,1716862239850,-151.09965317,0.00026152,2]
[328101931,1716862239861,-170.41831264,0.00026157,2]
[328101932,1716862239871,-1000.0,0.00026343,2]
[328101933,1716862239880,-342.95170706,0.00026399,2]
[328101934,1716862239890,-170.41831265,0.00026414,2]
[328101935,1716862239899,-159.74391441,0.00026535,2]
[328101936,1716862239909,-391.0,0.0002662,2]
[328101937,1716862239920,-159.08759929,0.00026788,2]
[328101938,1716862239930,-515.85151302,0.00026791,2]
[328101939,1716862239939,-1050.4933606,0.00026791,2]
[328101940,1716862239949,-200.0,0.00026791,2]
[328101941,1716862239959,-2216.68040232,0.00026898,2]
[328101942,1716862240190,-940.96739292,0.00026898,2]
[328101946,1716862241163,-7287.62520799,0.00026898,2]
[328101947,1716862241174,-7445.69564366,0.000269,2]
[328101948,1716862241885,-8366.5000005,0.000269,2]
[328101949,1716862242191,-686.32,0.000269,2]
[328101950,1716862242801,-1811.68779123,0.000269,2]
[328101951,1716862243368,-553.48829556,0.00026899,2]
[328101965,1716862243484,-2.61994723,0.00026899,2]
[328101966,1716862243697,-269.7816444,0.00026899,2]
[328101970,1716862244431,-1071.94961176,0.00026899,2]
[328101971,1716862244442,-329.71010987,0.000269,2]
[328101972,1716862244461,-1436.40087775,0.000269,2]
[328101973,1716862244480,-3544.7029261,0.000269,2]
[328101975,1716862244490,-331.65549182,0.00026998,2]
[328101977,1716862244500,-4018.84747845,0.00027,2]
[328101979,1716862244509,-1100.0,0.00027,2]
[328101981,1716862244518,-342.95170706,0.00027222,2]
[328101983,1716862244527,-342.95170706,0.00027255,2]
[328101984,1716862244536,-154.30080749,0.00027255,2]
[328101985,1716862244547,-805.91709047,0.0002739,2]
[328101986,1716862244556,-639.23,0.00027397,10]
[328101987,1716862244565,-159.74391441,0.0002744,2]
[328101988,1716862244575,-10445.27300315,0.00027611,2]
[328101989,1716862244584,-23621.01734904,0.00027613,2]
[328101990,1716862244594,-524.0,0.00027767,5]
[328101991,1716862244603,-342.95170706,0.00027852,2]
[328101992,1716862244616,-150.0,0.00027998,4]
[328101993,1716862244631,-674.66,0.00028035,2]
[328101994,1716862244640,-151.09965317,0.00028042,2]
[328101995,1716862244650,-151.09965317,0.00028064,2]
[328101996,1716862244660,-342.95170706,0.00028077,2]
[328101997,1716862244671,-399.595788,0.000281,2]
[328101998,1716862244680,-152.96549235,0.00028168,2]
[328101999,1716862244690,-1000.0,0.00028171,2]
[328102000,1716862244702,-342.95170706,0.00028171,2]
[328102001,1716862244711,-200.0,0.00028173,2]
[328102002,1716862244720,-500.0,0.00028173,2]
[328102003,1716862244729,-200.0,0.00028173,2]
[328102004,1716862244738,-165.12,0.00028256,2]
[328102005,1716862244747,-154.01663236,0.00028284,2]
[328102006,1716862244756,-154.30080749,0.00028285,2]
[328102007,1716862244765,-10445.27300315,0.00028324,2]
[328102008,1716862244775,-23621.01734904,0.00028325,2]
[328102009,1716862244785,-2500.0,0.000285,2]
[328102010,1716862244795,-1896.23,0.00028663,2]
[328102011,1716862244805,-429.2,0.00028758,2]
[328102012,1716862244815,-342.95170706,0.00028786,2]
[328102013,1716862244824,-1150.0,0.00029,2]
[328102014,1716862244834,-260.0,0.00029,7]
[328102015,1716862244843,-1500.0,0.00029,2]
[328102016,1716862244853,-281.71,0.00029006,2]
[328102017,1716862244864,-940.699,0.00029006,2]
[328102018,1716862244873,-238.2815,0.00029006,2]
[328102019,1716862244883,-165.29677628,0.00029006,2]
[328102020,1716862244893,-399.57398443,0.00029006,2]
[328102021,1716862244904,-465.85312078,0.00029006,2]
[328102022,1716862244914,-264.847,0.00029019,2]
[328102023,1716862244924,-151.372,0.00029019,2]
[328102024,1716862244933,-150.0,0.00029019,2]
[328102025,1716862244943,-10445.27300315,0.00029037,2]
[328102026,1716862244952,-23621.01734904,0.00029038,2]
[328102027,1716862244962,-150.0,0.00029106,2]
[328102028,1716862244972,-150.116,0.00029106,2]
[328102029,1716862244981,-150.159,0.00029106,2]
[328102030,1716862244990,-150.234,0.00029106,2]
[328102031,1716862244999,-150.0,0.00029106,2]
[328102032,1716862245009,-150.112,0.00029106,2]
[328102033,1716862245018,-153.729,0.00029106,2]
[328102034,1716862245027,-150.169,0.00029106,2]
[328102035,1716862245036,-150.127,0.00029106,2]
[328102036,1716862245046,-357.0,0.00029106,2]
[328102037,1716862245055,-975.0,0.00029106,2]
[328102038,1716862245064,-1645.0,0.00029106,2]
[328102039,1716862245075,-1265.0,0.00029106,2]
[328102040,1716862245084,-1225.0,0.00029106,2]
[328102041,1716862245094,-440.0,0.00029106,2]
[328102042,1716862245103,-614.0,0.00029106,2]
[328102043,1716862245115,-150.0,0.00029106,2]
[328102044,1716862245124,-164.0,0.00029106,2]
[328102045,1716862245134,-808.0,0.00029106,2]
[328102046,1716862245143,-445.0,0.00029106,2]
[328102047,1716862245151,-2398.0,0.00029106,2]
[328102048,1716862245160,-150.0,0.00029106,2]
[328102049,1716862245169,-216.0,0.00029106,2]
[328102050,1716862245178,-1651.0,0.00029106,2]
[328102051,1716862245187,-1137.0,0.00029106,2]
[328102052,1716862245198,-544.0,0.00029106,2]
[328102053,1716862245208,-3166.0,0.00029106,2]
[328102054,1716862245218,-289.0,0.00029106,2]
[328102055,1716862245228,-5766.0,0.00029106,2]
[328102056,1716862245238,-1467.0,0.00029106,2]
[328102057,1716862245248,-37944.0,0.00029106,2]
[328102058,1716862245258,-5140.0,0.00029106,2]
[328102059,1716862245268,-1062.0,0.00029106,2]
[328102060,1716862245278,-342.95170706,0.00029186,2]
[328102061,1716862245288,-465.85312076,0.0002923,2]
[328102062,1716862245298,-548.0,0.00029282,2]
[328102063,1716862245307,-155.85736351,0.00029376,4]
[328102064,1716862245317,-1019.14465494,0.000294,2]
[328102065,1716862245327,-1012.59178965,0.000294,2]
[328102066,1716862245336,-369.5853,0.0002945,2]
[328102067,1716862245345,-1000.0,0.0002945,2]
[328102068,1716862245355,-4489.7497,0.0002945,2]
[328102069,1716862245367,-7500.0,0.0002945,2]
[328102070,1716862245376,-465.85312076,0.00029453,2]
[328102071,1716862245385,-1500.0,0.000295,2]
[328102072,1716862245394,-342.95170706,0.00029519,2]
[328102073,1716862245403,-154.01663236,0.00029547,2]
[328102074,1716862245413,-266832.52598071,0.0002955,2]
[328102075,1716862245423,-152.0,0.00029556,3]
[328102076,1716862245432,-399.5739844,0.00029621,2]
[328102077,1716862245441,-342.95170706,0.00029628,2]
[328102078,1716862245451,-157.569704,0.00029638,2]
[328102079,1716862245460,-176.060262,0.00029638,2]
[328102080,1716862245470,-159.534245,0.00029638,2]
[328102081,1716862245479,-156.312706,0.00029638,2]
[328102082,1716862245488,-159.534243,0.00029638,2]
[328102083,1716862245497,-172.737952,0.00029638,2]
[328102084,1716862245507,-163.681498,0.00029638,2]
[328102085,1716862245516,-4134.016492,0.00029638,2]
[328102086,1716862245526,-300.0,0.00029648,2]
[328102087,1716862245535,-465.85312076,0.00029677,2]
[328102088,1716862245544,-10445.27300315,0.0002975,2]
[328102089,1716862245554,-23621.01734904,0.00029751,2]
[328102090,1716862245563,-300.0,0.00029785,2]
[328102091,1716862245573,-342.95170706,0.00029817,2]
[328102092,1716862245582,-1069.2884,0.00029878,2]
[328102093,1716862245591,-165.17027444,0.00029898,2]
[328102094,1716862245601,-16716.12237838,0.00029898,2]
[328102095,1716862245612,-220.66992862,0.00029898,2]
[328102096,1716862245623,-160.8791,0.00029898,2]
[328102097,1716862245635,-333.1787,0.00029898,2]
[328102098,1716862245645,-1743.9249,0.00029898,2]
[328102099,1716862245655,-465.85312076,0.000299,2]
[328102100,1716862245665,-300.0,0.00029922,2]
[328102101,1716862245675,-160.65247078,0.00029967,2]
[328102102,1716862245685,-258.16374268,0.00029976,2]
[328102103,1716862245694,-749.27168575,0.00029976,7]
[328102104,1716862245703,-7897.09981044,0.00029976,2]
[328102105,1716862245713,-155.81339771,0.00029976,2]
[328102106,1716862245723,-218.80592392,0.00029977,2]
[328102107,1716862245732,-192.71911313,0.00029977,2]
[328102108,1716862245741,-623.89232154,0.00029977,2]
[328102109,1716862245750,-151.22,0.00029977,2]
[328102110,1716862245759,-151.22,0.00029977,2]
[328102111,1716862245768,-155.3083631,0.00029978,2]
[328102112,1716862245778,-430.30978675,0.00029978,2]
[328102113,1716862245788,-238.76434368,0.00029978,2]
[328102114,1716862245798,-49314.43262083,0.00029978,2]
[328102115,1716862245807,-15220.17725223,0.00029978,2]
[328102116,1716862245821,-2222.20988524,0.00029978,2]
[328102117,1716862245833,-906.17357973,0.00029978,2]
[328102118,1716862246660,-263.5850197,0.00026899,2]
[328102119,1716862246673,-964.91436213,0.00026899,2]
[328102120,1716862246683,-532.69,0.00029027,10]
[328102121,1716862246693,-159.23450938,0.00029036,2]
[328102122,1716862246703,-337.47918463,0.00029036,2]
[328102123,1716862246714,-4866.88194386,0.00029978,2]
[328102135,1716863373091,1000.0,0.0003,120]
[328102136,1716863432743,-1897.83949895,0.0001387,2]
[328102137,1716863432753,-8946.9240009,0.00013871,2]
[328102138,1716863432763,-1996.0891,0.00013873,2]
[328102139,1716863432773,-153.62,0.00013973,2]
[328102140,1716863432783,-156.62,0.00013973,2]
[328102141,1716863432793,-170.32,0.00013973,2]
[328102142,1716863432803,-200.0,0.00015,2]
[328102143,1716863432813,-1228.49938183,0.00017258,2]
[328102144,1716863432823,-2339.3435058,0.00017259,2]
[328102145,1716863432833,-150.0,0.00017259,2]
[328102146,1716863432842,-791.94,0.00018,2]
[328102147,1716863432852,-150.99,0.00018,2]
[328102148,1716863432861,-2132.57891825,0.00018,2]
[328102149,1716863432871,-499.99,0.00018637,2]
[328102150,1716863432880,-283.34,0.00018637,2]
[328102151,1716863432890,-172.75529069,0.00018638,2]
[328102152,1716863432899,-150.99,0.00018638,2]
[328102153,1716863432909,-3885.07287193,0.000192,2]
[328102154,1716863432918,-484.09,0.0001945,2]
[328102155,1716863432927,-576.37,0.00019451,2]
[328102156,1716863432936,-688.66,0.00020851,2]
[328102157,1716863432946,-343.17,0.00022235,2]
[328102158,1716863432955,-222.64,0.00022267,2]
[328102159,1716863432964,-23900.0,0.00022331,2]
[328102160,1716863432976,-1834.38,0.00022383,2]
[328102161,1716863432986,-1402.79,0.00022384,2]
[328102162,1716863432995,-3805.62,0.00022413,2]
[328102163,1716863433004,-2751.0,0.00022417,2]
[328102164,1716863433015,-250.0,0.0002242,2]
[328102165,1716863433024,-150.0,0.00022511,2]
[328102166,1716863433033,-279.27,0.00022519,2]
[328102167,1716863433043,-4028.75,0.00022542,2]
[328102168,1716863433055,-1025.15,0.00022563,2]
[328102169,1716863433065,-6260.7,0.00022612,2]
[328102170,1716863433076,-250.0,0.00022732,2]
[328102171,1716863433085,-629.61,0.00022782,2]
[328102172,1716863433095,-1047.87625454,0.00022782,2]
[328102173,1716863433104,-6090.06,0.00022783,2]
[328102174,1716863433114,-200.0,0.00022799,2]
[328102175,1716863433124,-420.09,0.00022823,2]
[328102176,1716863433134,-250.0,0.0002283,2]
[328102177,1716863433144,-257.45,0.00022832,2]
[328102178,1716863433153,-777.36,0.00022843,2]
[328102179,1716863433162,-629.61,0.00022844,2]
[328102181,1716863433172,-629.61,0.00022907,2]
[328102182,1716863433183,-200.0,0.00022928,2]
[328102183,1716863433193,-4357.86,0.00022958,2]
[328102184,1716863433203,-629.61,0.00022969,2]
[328102185,1716863433213,-172.95,0.00022996,2]
[328102186,1716863433223,-629.61,0.00023032,2]
[328102187,1716863433232,-629.61,0.00023094,2]
[328102188,1716863433242,-688.66,0.00023115,2]
[328102189,1716863433251,-629.61,0.00023157,2]
[328102190,1716863433261,-188.01,0.00023177,2]
[328102191,1716863433271,-629.61,0.00023219,2]
[328102192,1716863433280,-629.61,0.00023282,2]
[328102193,1716863433289,-629.61,0.00023344,2]
[328102194,1716863433299,-629.61,0.00023407,2]
[328102195,1716863433309,-629.61,0.00023469,2]
[328102196,1716863433319,-629.61,0.00023532,2]
[328102197,1716863433333,-629.61,0.00023594,2]
[328102198,1716863433345,-629.61,0.00023657,2]
[328102199,1716863433355,-629.61,0.00023719,2]
[328102200,1716863433364,-629.61,0.00023782,2]
[328102201,1716863433374,-629.61,0.00023844,2]
[328102202,1716863433384,-126.38538229,0.00023907,2]
[328102203,1716863433397,-503.22461771,0.00023907,2]
[328102204,1716863433406,-354.93929182,0.00023928,2]
[328102205,1716863433418,-482.79070818,0.00023928,2]
[328102206,1716863433428,-629.61,0.00023969,2]
[328102207,1716863433437,-548.09302787,0.00023982,2]
[328102208,1716863433447,-433.55644984,0.00024,2]
[328102209,1716863433457,-472.91332031,0.00024,2]
[328102210,1716863433467,-166.54,0.00024232,2]
[328102211,1716863433477,-150.0,0.00024237,2]
[328102212,1716863433487,-150.0,0.00024457,2]
[328102213,1716863433497,-150.0,0.00024509,2]
[328102214,1716863433507,-154.3008075,0.00024516,2]
[328102215,1716863433516,-152.14,0.00024629,2]
[328102216,1716863433528,-152.14,0.00024637,2]
[328102217,1716863433538,-152.14,0.00024644,2]
[328102218,1716863433548,-152.14,0.00024651,2]
[328102219,1716863433558,-152.14,0.00024658,2]
[328102220,1716863433568,-152.14,0.00024666,2]
[328102221,1716863433581,-152.14,0.00024673,2]
[328102222,1716863433591,-154.54486721,0.00024675,2]
[328102223,1716863433600,-152.14,0.0002468,2]
[328102224,1716863433610,-152.14,0.00024687,2]
[328102225,1716863433809,-152.14,0.00024695,2]
[328102226,1716863433819,-152.14,0.00024702,2]
[328102227,1716863433830,-152.14,0.00024709,2]
[328102228,1716863433840,-152.14,0.00024716,2]
[328102229,1716863433850,-152.14,0.00024724,2]
[328102230,1716863433859,-152.14,0.00024731,2]
[328102231,1716863433868,-152.14,0.00024738,2]
[328102232,1716863433878,-150.0,0.00024744,2]
[328102233,1716863433887,-152.14,0.00024745,2]
[328102234,1716863433896,-152.14,0.00024752,2]
[328102235,1716863433906,-180.0,0.00024762,2]
[328102236,1716863433915,-171.87288558,0.000249,2]
[328102237,1716863433925,-405.51429335,0.000249,2]
[328102238,1716863433934,-165.17027442,0.000249,2]
[328102239,1716863433943,-16862.75318649,0.000249,2]
[328102240,1716863433953,-177.08698217,0.00024919,2]
[328102241,1716863433962,-150.0,0.00024933,2]
[328102242,1716863433977,-150.68,0.0002499,2]
[328102243,1716863433987,-150.68,0.0002499,2]
[328102244,1716863433996,-150.68,0.0002499,2]
[328102245,1716863434006,-150.68,0.0002499,2]
[328102246,1716863434017,-150.68,0.0002499,2]
[328102247,1716863434027,-150.68,0.0002499,2]
[328102248,1716863434036,-150.68,0.0002499,2]
[328102249,1716863434046,-150.68,0.0002499,2]
[328102250,1716863434058,-150.68,0.0002499,2]
[328102251,1716863434067,-166.79461931,0.00024999,2]
[328102252,1716863434079,-500.0,0.00024999,2]
[328102253,1716863434089,-488.11242997,0.00024999,2]
[328102254,1716863434098,-500.0,0.00024999,2]
[328102255,1716863434108,-528.04611569,0.00024999,2]
[328102256,1716863434117,-155.0,0.00025,2]
[328102257,1716863434127,-77744.44327205,0.00025,2]
[328102258,1716863434159,-844.00971584,0.00025,2]
[328102259,1716863434171,-1542299.05192356,0.00025,2]
[328102260,1716863434181,-224.57769826,0.00025,2]
[328102261,1716863434190,-1050.0,0.00025,2]
[328102262,1716863434200,-151.09965317,0.00025219,2]
[328102263,1716863434209,-150.0,0.00025305,2]
[328102264,1716863434218,-170.73,0.00025348,2]
[328102265,1716863434227,-163.28556643,0.0002535,2]
[328102266,1716863434236,-6260.7,0.00025352,2]
[328102267,1716863434246,-150.0,0.00025354,2]
[328102268,1716863434255,-688.66,0.00025379,2]
[328102269,1716863434265,-151.09965317,0.00025452,2]
[328102270,1716863434275,-150.0,0.00025469,2]
[328102271,1716863434284,-158.04702826,0.0002548,2]
[328102272,1716863434294,-177.08698217,0.00025511,2]
[328102273,1716863434303,-177.08698217,0.0002554,2]
[328102274,1716863434313,-177.08698217,0.00025591,2]
[328102275,1716863434324,-150.0,0.00025663,2]
[328102276,1716863434334,-154.01663237,0.00025685,2]
[328102277,1716863434343,-150.0,0.00025778,2]
[328102278,1716863434353,-158.22777776,0.00025791,2]
[328102279,1716863434362,-154.54486722,0.00025794,2]
[328102280,1716863434372,-16862.75318648,0.00025838,2]
[328102281,1716863434382,-163.28556643,0.0002586,2]
[328102282,1716863434391,-405.5142933,0.00026,2]
[328102283,1716863434400,-150.0,0.00026019,2]
[328102284,1716863434410,-150.0,0.00026316,2]
[328102285,1716863434420,-150.0,0.00026324,2]
[328102286,1716863434430,-150.0,0.00026371,2]
[328102287,1716863434439,-150.0,0.00026465,2]
[328102288,1716863434449,-177.08698217,0.00026596,2]
[328102289,1716863434458,-170.73,0.00026693,2]
[328102290,1716863434468,-7402.85138046,0.00026775,2]
[328102291,1716863434481,-303.305,0.00026775,2]
[328102292,1716863438662,-61923.59007239,0.00025,11]
[328102294,1716863438673,-9156.59680602,0.00026775,2]
[328102296,1716863438683,-151.09965317,0.00026782,2]
[328102298,1716863438692,-7686.6439,0.000268,2]
[328102300,1716863438702,-6686.4947,0.000269,2]
[328102301,1716863438711,-837.73,0.00026919,2]
[328102302,1716863438721,-4018.84747845,0.00027,2]
[328102303,1716863438730,-1100.0,0.00027,2]
[328102304,1716863438739,-405.5142933,0.000271,2]
[328102305,1716863438749,-151.09965317,0.00027292,2]
[328102306,1716863438758,-150.0,0.00027333,2]
[328102307,1716863438767,-154.3008075,0.00027342,2]
[328102308,1716863438776,-150.0,0.00027347,2]
[328102309,1716863438786,-805.91709047,0.0002739,2]
[328102310,1716863438795,-165.17027442,0.00027467,2]
[328102311,1716863438804,-917.3356,0.00027511,2]
[328102312,1716863438813,-172.95,0.00027596,2]
[328102313,1716863438822,-151.09965317,0.00027602,2]
[328102314,1716863438832,-688.66,0.00027643,2]
[328102315,1716863438842,-1595.96253709,0.00027643,2]
[328102316,1716863438851,-150.68,0.00027703,2]
[328102317,1716863438859,-16862.75318648,0.00027713,2]
[328102318,1716863438868,-151.09965317,0.00027826,2]
[328102319,1716863438878,-150.0,0.00027841,2]
[328102320,1716863438887,-150.0,0.00027853,2]
[328102321,1716863438896,-150.0,0.0002791,2]
[328102322,1716863438905,-155.0,0.00028,2]
[328102323,1716863438915,-399.532992,0.00028,2]
[328102324,1716863438924,-170.73,0.00028038,2]
[328102325,1716863438934,-6260.7,0.00028092,2]
[328102326,1716863438943,-150.0,0.00028126,2]
[328102327,1716863438953,-150.0,0.00028151,2]
[328102328,1716863438963,-150.0,0.00028152,2]
[328102329,1716863438975,-154.01663237,0.00028166,2]
[328102330,1716863438986,-177.08698217,0.00028175,2]
[328102331,1716863438995,-300.0,0.000282,2]
[328102332,1716863439005,-405.5142933,0.000282,2]
[328102333,1716863439014,-150.0,0.00028201,2]
[328102334,1716863439025,-150.0,0.0002822,2]
[328102335,1716863439034,-150.0,0.0002833,2]
[328102336,1716863439046,-154.01663237,0.00028334,2]
[328102337,1716863439057,-177.08698217,0.0002835,2]
[328102338,1716863439067,-150.0,0.00028377,2]
[328102339,1716863439079,-177.08698217,0.00028472,2]
[328102340,1716863439088,-150.0,0.00028484,2]
[328102341,1716863439098,-150.0,0.00028512,2]
[328102342,1716863439108,-150.0,0.00028556,2]
[328102343,1716863439117,-300.0,0.00028571,2]
[328102344,1716863439127,-150.0,0.000286,2]
[328102345,1716863439138,-415.79,0.00028603,2]
[328102346,1716863439148,-150.0,0.00028609,2]
[328102347,1716863439158,-16862.75318648,0.0002865,2]
[328102348,1716863439168,-150.0,0.00028814,2]
[328102349,1716863439178,-480.0,0.00028826,5]
[328102350,1716863439188,-150.0,0.00028835,2]
[328102351,1716863439198,-150.0,0.00028836,2]
[328102352,1716863439207,-150.0,0.0002888,2]
[328102353,1716863439217,-683.0,0.00028919,2]
[328102354,1716863439227,-1500.0,0.00028924,2]
[328102355,1716863439238,-300.0,0.00028942,2]
[328102356,1716863439248,-150.0,0.00028976,2]
[328102357,1716863439258,-150.68,0.0002899,2]
[328102358,1716863439268,-150.68,0.0002899,2]
[328102359,1716863439278,-150.68,0.0002899,2]
[328102360,1716863439287,-150.68,0.0002899,2]
[328102361,1716863439296,-150.0,0.00028995,2]
[328102362,1716863439306,-150.0,0.00028999,10]
[328102363,1716863439315,-150.0,0.00028999,10]
[328102364,1716863439325,-150.0,0.00028999,10]
[328102365,1716863439337,-5000.0,0.00029,2]
[328102366,1716863439346,-296169.9252775,0.00029,2]
[328102367,1716863439360,-742.11629914,0.00029,2]
[328102368,1716863439371,-277.0527081,0.00029,2]
[328102369,1716863439383,-2838.32758398,0.00029,2]
[328102370,1716863440816,-669.91,0.00027703,10]
[328102371,1716863440826,-150.0,0.00027757,2]
[328102372,1716863440836,-150.0,0.00028022,2]
[328102373,1716863440846,-150.0,0.00028046,2]
[328102374,1716863440855,-150.0,0.00028278,2]
[328102375,1716863440865,-150.0,0.00028371,2]
[328102376,1716863440875,-150.0,0.00028394,2]
[328102377,1716863440884,-150.0,0.00028411,2]
[328102378,1716863440894,-150.0,0.00028449,2]
[328102379,1716863440903,-150.0,0.00028546,2]
[328102380,1716863440912,-32.60500752,0.0002871,2]
[328102381,1716863440924,-117.39499248,0.0002871,2]
[328102382,1716863440933,-134.21215117,0.00028821,2]
[328102383,1716863440944,-15.78784883,0.00028821,2]
[328102384,1716863440954,-4546.77752553,0.00029,2]
[328102385,1716863440965,-743.84898851,0.00029,2]
[328102386,1716863440980,-5161.19043,0.00029,2]
[328102387,1716863440994,-3733.84704,0.00029,2]
[328102389,1716863441006,-1398.82810855,0.00029,2]
[328102390,1716863441018,-15021.22865226,0.00029,2]
[328102391,1716863441029,-12290.958005,0.00029,2]
[328102392,1716863441040,-544.38170658,0.00029,2]
[328102393,1716863441052,-3441.37724298,0.00029,2]
[328102394,1716863441564,-150.0,0.00028651,2]
[328102395,1716863441575,-150.0,0.00028715,2]
[328102396,1716863441586,-150.0,0.0002879,2]
[328102397,1716863441596,-150.0,0.00028987,2]
[328102398,1716863441606,-7032.4804271,0.00029,2]
[328102399,1716863441618,-1620.000003,0.00029,2]
[328102400,1716863441629,-13534.3449062,0.00029,2]
[328102401,1716863441932,-150.0,0.00027791,2]
[328102402,1716863441942,-130903.31509557,0.00029,2]
[328102403,1716863441952,-151.0,0.00029,7]
[328102404,1716863441962,-151.0,0.00029,7]
[328102405,1716863441971,-1150.0,0.00029,2]
[328102406,1716863441985,-150.68,0.00029004,2]
[328102407,1716863441994,-150.68,0.00029004,2]
[328102408,1716863442003,-150.0,0.00029009,2]
[328102409,1716863442014,-150.0,0.00029013,10]
[328102410,1716863442023,-150.0,0.00029013,2]
[328102411,1716863442032,-4354.0,0.00029014,4]
[328102412,1716863442042,-573.0,0.00029014,4]
[328102413,1716863442052,-12045.0,0.00029014,4]
[328102414,1716863442062,-4896.0,0.00029014,4]
[328102415,1716863442072,-35389.0,0.00029014,4]
[328102416,1716863442082,-15478.52759365,0.00029014,4]
[328102418,1716863442664,-149566.47240635,0.00029014,4]
[328102420,1716863442674,-151.0,0.00029014,7]
[328102422,1716863442685,-151.0,0.00029014,7]
[328102424,1716863442695,-151.0,0.00029014,7]
[328102426,1716863442704,-151.0,0.00029014,7]
[328102428,1716863442713,-151.0,0.00029014,7]
[328102430,1716863442723,-151.0,0.00029014,7]
[328102432,1716863442732,-151.0,0.00029014,7]
[328102434,1716863442742,-151.0,0.00029014,7]
[328102436,1716863442751,-150.0,0.00029074,2]
[328102438,1716863442761,-151.09965317,0.00029076,2]
[328102440,1716863442770,-150.0,0.00029087,2]
[328102442,1716863442779,-151.006,0.0002909,2]
[328102444,1716863442787,-166.124,0.0002909,2]
[328102446,1716863442795,-2398.0,0.0002909,2]
[328102448,1716863442802,-445.0,0.0002909,2]
[328102450,1716863442810,-808.0,0.0002909,2]
[328102452,1716863442818,-150.0,0.0002909,2]
[328102454,1716863442826,-217.0,0.0002909,2]
[328102456,1716863442835,-1137.0,0.0002909,2]
[328102458,1716863442845,-1651.0,0.0002909,2]
[328102460,1716863442854,-544.0,0.0002909,2]
[328102462,1716863442863,-3166.0,0.0002909,2]
[328102464,1716863442872,-1062.0,0.0002909,2]
[328102466,1716863442880,-293.121,0.0002909,2]
[328102468,1716863442888,-988.513,0.0002909,2]
[328102470,1716863442897,-5766.0,0.0002909,2]
[328102472,1716863442903,-357.0,0.0002909,2]
[328102474,1716863442910,-5140.0,0.0002909,2]
[328102476,1716863442918,-1467.0,0.0002909,2]
[328102478,1716863442927,-37944.0,0.0002909,2]
[328102480,1716863442937,-1500.0,0.00029096,2]